bitfinex-derivatives/quotes_ETHF0:USTF0_20250217
["timestamp","ask_amount","ask_price","bid_price","bid_amount"]
[1739760351203,5.60939754,2675.5,2675.4,0.74744]
[1739760352293,3.21339754,2675.5,2675.4,0.74744]
[1739760352494,5.60939754,2675.5,2675.4,0.74744]
[1739760352999,6.96655887,2675.5,2675.4,0.74744]
[1739760357703,7.50985887,2675.5,2675.4,0.74744]
[1739760360105,5.60939754,2675.5,2675.4,0.74744]
[1739760360705,6.96655887,2675.5,2675.4,0.74744]
[1739760361101,5.60939754,2675.5,2675.4,0.74744]
[1739760362601,6.96655887,2675.5,2675.4,0.74744]
[1739760363200,6.96655887,2675.5,2675.2,1.86875]
[1739760363201,6.96655887,2675.5,2675.1,0.5486]
[1739760363409,1.35716133,2675.3,2675.2,0.7475]
[1739760364205,1.35716133,2675.3,2675.0,1.15399754]
[1739760364507,1.35716133,2675.1,2675.0,0.00559754]
[1739760364716,4.49969133,2675.1,2675.0,0.00559754]
[1739760365004,0.74762,2674.8,2674.5,0.74768]
[1739760365303,4.56496133,2674.6,2674.5,0.74768]
[1739760365909,3.2078,2674.6,2674.5,0.74768]
[1739760366713,3.2078,2674.6,2674.5,1.88938]
[1739760367107,1.35716133,2674.8,2674.5,1.1417]
[1739760367304,3.2078,2674.9,2674.5,1.1417]
[1739760367305,3.2078,2674.9,2674.5,2.49886133]
[1739760367510,5.6028,2675.2,2675.1,0.74753]
[1739760368513,6.95996133,2675.2,2675.1,0.74753]
[1739760368909,7.51666133,2675.2,2675.1,0.74753]
[1739760370209,7.51666133,2675.2,2674.8,0.5926]
[1739760370512,3.2078,2674.9,2674.8,0.74761]
[1739760371407,0.74762,2674.8,2674.4,3.7895]
[1739760371612,4.29976133,2674.7,2674.6,0.74767]
[1739760374810,2.9426,2674.7,2674.6,0.74767]
[1739760375114,3.69025,2674.7,2674.4,0.7477]
[1739760375306,3.69024,2674.7,2674.5,0.74768]
[1739760375508,2.9426,2674.7,2674.3,0.00376725]
[1739760375810,2.9426,2674.7,2674.6,0.74767]
[1739760380114,3.2078,2674.9,2674.4,3.59885]
[1739760380310,2.395,2674.8,2674.7,0.74764]
[1739760383613,3.2078,2675.2,2674.6,6.15186588]
[1739760383813,0.00559754,2675.5,2674.9,6.15186588]
[1739760383814,3.21339754,2675.5,2674.9,6.15186588]
[1739760384112,5.60839754,2675.5,2675.4,0.74744]
[1739760384614,8.55246342,2675.5,2674.6,6.15186588]
[1739760384818,1.6791,2675.4,2674.6,2.94406588]
[1739760385018,6.15186588,2675.2,2674.5,0.543]
[1739760385219,2.395,2675.1,2674.5,0.543]
[1739760385520,41.54757,2675.0,2674.8,0.7476]
[1739760385818,7.27616588,2674.9,2674.3,3.21156725]
[1739760386019,3.95547,2674.6,2674.4,0.74771]
[1739760386321,2.395,2674.5,2674.4,0.74771]
[1739760387822,2.9518,2674.5,2674.4,0.74771]
[1739760388026,2.9518,2674.5,2674.3,0.00376725]
[1739760388224,0.5596,2674.4,2674.3,0.00376725]
[1739760388924,0.5596,2674.4,2674.3,0.75151725]
[1739760389923,0.5596,2674.4,2674.3,0.00376725]
[1739760390118,0.5596,2674.4,2674.3,0.75151725]
[1739760391128,0.5596,2674.4,2674.3,0.00376725]
[1739760392518,1.30732,2674.4,2674.3,0.00376725]
[1739760393725,3.4746,2674.4,2674.3,0.00376725]
[1739760394024,0.7479,2673.8,2673.1,1.87021]
[1739760394327,6.7454,2673.7,2673.6,0.74794]
[1739760394621,6.7454,2673.7,2673.6,0.74795]
[1739760395222,6.7454,2673.7,2673.1,1.6804]
[1739760395421,6.7454,2673.7,2673.5,0.74795]
[1739760395624,6.7454,2673.7,2673.5,0.74796]
[1739760395824,6.7454,2673.7,2673.6,0.74795]
[1739760398740,6.7454,2673.7,2673.1,1.6804]
[1739760398940,6.7454,2673.7,2673.5,0.74797]
[1739760399246,7.49332,2673.7,2673.4,0.74799]
[1739760399638,6.7454,2673.7,2673.5,0.74795]
[1739760400438,6.7454,2673.7,2673.1,1.6804]
[1739760400939,6.7454,2673.7,2673.6,0.74795]
[1739760401540,4.3504,2673.7,2673.6,0.74795]
[1739760402045,6.7464,2673.7,2673.6,0.74795]
[1739760403340,7.49432,2673.7,2673.5,0.74795]
[1739760403539,2.94406588,2673.6,2672.9,3.2078]
[1739760403745,3.2078,2673.4,2673.3,0.74803]
[1739760404144,3.2078,2673.4,2673.1,0.74809]
[1739760404338,3.5181,2673.3,2673.1,0.74806]
[1739760404544,3.5181,2673.3,2673.2,0.74806]
[1739760405047,2.396,2673.3,2673.2,0.74806]
[1739760405647,3.2078,2673.4,2673.3,0.74803]
[1739760405856,5.6048,2673.4,2673.3,0.74803]
[1739760407748,6.3528,2673.4,2673.0,0.5978]
[1739760408052,5.6048,2673.4,2673.3,0.74803]
[1739760408251,6.35281,2673.4,2673.3,0.74803]
[1739760408452,5.6048,2673.4,2673.3,0.74803]
[1739760409651,5.6048,2673.4,2673.0,0.5978]
[1739760409858,6.35281,2673.4,2673.3,0.74803]
[1739760410050,5.6048,2673.4,2673.3,0.74803]
[1739760412754,5.6048,2673.4,2673.2,0.74803]
[1739760412944,6.35281,2673.4,2673.3,0.74803]
[1739760413146,5.6048,2673.4,2673.3,0.74803]
[1739760413545,5.6048,2673.4,2672.8,1.1542]
[1739760413748,5.6048,2673.4,2673.3,0.74803]
[1739760413950,5.6048,2673.4,2673.2,0.74805]
[1739760414147,5.6048,2673.4,2673.3,0.74803]
[1739760415151,6.35281,2673.4,2673.1,0.74806]
[1739760415352,6.35281,2673.4,2673.2,0.74805]
[1739760415656,6.35281,2673.4,2673.2,0.74804]
[1739760415855,5.6048,2673.4,2673.2,0.74805]
[1739760416047,2.94406588,2673.3,2672.9,0.5877]
[1739760416250,3.2078,2673.1,2672.9,0.5877]
[1739760416449,3.2078,2673.1,2673.0,0.74811]
[1739760416655,6.19409636,2673.1,2673.0,0.74811]
[1739760417651,6.19409636,2673.1,2672.9,0.5877]
[1739760418156,6.19409636,2673.1,2673.0,0.74811]
[1739760418656,6.19409636,2673.1,2672.9,0.5877]
[1739760418860,6.94218636,2673.1,2673.0,0.74811]
[1739760419156,6.94218636,2673.1,2672.9,0.5877]
[1739760419353,6.94218636,2673.1,2672.9,1.33583]
[1739760419655,6.19409636,2673.1,2673.0,0.74811]
[1739760419850,0.74813,2673.0,2672.8,1.1542]
[1739760420053,6.19409636,2673.1,2672.8,0.597]
[1739760420251,6.94220636,2673.1,2672.9,0.74814]
[1739760420448,6.19409636,2673.1,2673.0,0.74811]
[1739760420853,6.19409636,2673.1,2672.6,1.87057]
[1739760421047,6.19409636,2673.1,2673.0,0.74811]
[1739760421247,6.19409636,2673.1,2672.8,0.5471]
[1739760421455,0.74812,2673.0,2672.5,1.1578]
[1739760421653,0.5953,2672.9,2672.8,0.74817]
[1739760422160,6.19409636,2673.1,2673.0,0.74811]
[1739760422750,0.5763,2673.2,2673.0,0.74811]
[1739760422956,3.7914,2673.4,2673.3,0.74803]
[1739760423156,6.1964,2673.4,2673.3,0.74803]
[1739760424659,3.2078,2673.4,2673.3,0.74803]
[1739760424862,5.6138,2673.4,2673.3,0.74803]
[1739760427460,2.94406588,2673.6,2673.5,0.74797]
[1739760427663,6.09601588,2673.6,2673.5,0.74797]
[1739760428268,5.34806588,2673.6,2673.5,0.74797]
[1739760429454,3.2078,2673.7,2673.6,0.74795]
[1739760429657,5.6118,2673.7,2673.6,0.74795]
[1739760430474,3.2078,2673.7,2673.6,0.74795]
[1739760435370,2.404,2673.8,2673.7,0.74792]
[1739760436358,2.9573,2673.8,2673.7,0.74792]
[1739760439167,2.404,2673.8,2673.7,0.74792]
[1739760439773,0.00560821,2673.9,2673.8,0.74789]
[1739760440479,0.75348821,2673.9,2673.7,0.7479]
[1739760440868,1.1524,2673.8,2673.7,0.7479]
[1739760442469,1.90029,2673.8,2673.7,0.7479]
[1739760442776,1.1524,2673.8,2673.7,0.7479]
[1739760445072,3.5494,2673.8,2673.7,0.7479]
[1739760445281,2.9771,2673.8,2673.7,0.7479]
[1739760445574,2.397,2673.8,2673.7,0.7479]
[1739760454475,0.00560821,2673.9,2673.6,3.2078]
[1739760454676,0.00560821,2673.9,2673.8,0.74789]
[1739760460181,0.00560821,2673.9,2673.8,1.34229]
[1739760466795,0.00560821,2673.9,2673.8,0.74789]
[1739760470792,0.7479,2673.8,2673.7,0.7479]
[1739760471090,0.75348821,2673.9,2673.8,0.74789]
[1739760471486,0.75348821,2673.9,2673.4,1.6933]
[1739760471688,0.5624,2673.8,2673.7,0.74791]
[1739760472989,0.5624,2673.8,2673.3,3.2078]
[1739760472990,3.50646588,2673.8,2673.3,3.2078]
[1739760473287,2.396,2673.7,2673.6,0.74795]
[1739760473691,3.14392,2673.7,2673.3,3.2078]
[1739760473994,0.5602,2673.6,2673.5,0.74796]
[1739760474699,1.30815,2673.6,2673.5,0.74796]
[1739760474885,0.5602,2673.6,2673.5,0.74796]
[1739760479989,0.74799,2673.5,2673.3,0.74801]
[1739760480188,3.2078,2673.4,2673.3,0.74801]
[1739760480394,3.7734,2673.4,2673.3,0.74801]
[1739760480989,4.52141,2673.4,2673.3,0.74803]
[1739760481185,4.5214,2673.4,2673.3,0.74803]
[1739760483499,5.0636,2673.4,2673.2,0.74804]
[1739760483797,2.396,2673.3,2673.2,0.74804]
[1739760483991,3.14403,2673.3,2673.2,0.74804]
[1739760484293,0.7481,2673.1,2672.7,4.83162989]
[1739760484497,3.75,2673.0,2672.7,4.83162989]
[1739760484795,2.396,2672.9,2672.8,0.74815]
[1739760486996,4.3165,2673.0,2672.9,0.74814]
[1739760487199,6.1713,2673.0,2672.9,0.74814]
[1739760487892,2.9635,2673.0,2672.9,0.74814]
[1739760490997,3.71161,2673.0,2672.9,0.74814]
[1739760491197,6.91941,2673.0,2672.9,0.74814]
[1739760491393,0.74814,2672.9,2672.8,0.74815]
[1739760491599,1.32814,2672.9,2672.8,0.74815]
[1739760491800,0.58,2672.9,2672.8,0.74815]
[1739760492300,3.52406588,2672.9,2672.2,0.01311]
[1739760492498,3.2078,2672.6,2672.2,0.01311]
[1739760492700,0.74828,2672.4,2672.3,0.7483]
[1739760493206,2.9754,2672.5,2672.2,0.01311]
[1739760493207,0.5784,2672.5,2672.2,0.01311]
[1739760493504,7.44287588,2672.3,2672.2,0.01311]
[1739760493800,6.69456588,2672.3,2672.2,0.01311]
[1739760494196,7.44287588,2672.3,2672.2,0.01311]
[1739760495102,6.69456588,2672.3,2672.2,0.01311]
[1739760495400,13.44287588,2672.3,2672.2,0.01311]
[1739760495605,2.94406588,2672.0,2671.7,0.74848]
[1739760495905,6.1677,2671.9,2671.4,0.5653]
[1739760496103,0.5536,2671.8,2671.6,0.74849]
[1739760496605,0.5536,2671.8,2671.4,0.5653]
[1739760496806,0.5536,2671.8,2671.5,0.74852]
[1739760497603,1.30206,2671.8,2671.4,1.31385]
[1739760497904,0.5536,2671.8,2671.5,0.74852]
[1739760498313,0.5536,2671.8,2671.4,0.5653]
[1739760498910,0.5536,2671.8,2671.7,0.74848]
[1739760498911,0.565,2671.8,2671.7,0.74848]
[1739760500917,0.565,2671.8,2671.4,2.43671]
[1739760500918,0.565,2671.8,2671.4,0.5653]
[1739760501215,3.2078,2671.6,2671.4,1.31385]
[1739760501414,2.404,2671.5,2671.4,1.31385]
[1739760501615,2.404,2671.5,2671.4,0.5653]
[1739760501819,2.9717,2671.5,2671.4,1.31386]
[1739760502109,2.9717,2671.5,2671.3,0.5581]
[1739760502309,3.69263588,2671.4,2670.9,0.5832]
[1739760502512,3.69263588,2671.4,2671.2,0.7486]
[1739760502714,3.8042,2671.3,2671.2,0.7486]
[1739760503214,2.9717,2671.5,2671.4,0.74856]
[1739760504415,3.2078,2671.6,2671.5,0.74853]
[1739760504616,5.6148,2671.6,2671.5,0.74853]
[1739760504804,6.36332,2671.6,2671.3,0.74857]
[1739760505006,7.48772,2671.6,2671.4,0.74855]
[1739760505411,7.48772,2671.6,2671.1,0.5805]
[1739760505412,6.7392,2671.6,2671.3,0.74858]
[1739760505607,3.69263588,2671.4,2671.2,0.7486]
[1739760505917,2.94406588,2671.4,2671.3,0.74859]
[1739760506415,8.06703,2671.6,2671.4,0.74856]
[1739760506716,7.3185,2671.6,2670.9,0.5832]
[1739760506916,8.06702,2671.6,2671.4,0.74855]
[1739760507714,7.3185,2671.6,2671.4,0.74855]
[1739760507922,8.06702,2671.6,2671.4,0.74855]
[1739760508321,7.3185,2671.6,2671.4,0.74855]
[1739760508522,7.3185,2671.6,2671.5,0.74853]
[1739760508925,4.3322,2671.6,2671.5,0.74853]
[1739760509124,6.7442,2671.6,2671.5,0.74853]
[1739760510025,5.6198,2671.6,2671.5,0.74853]
[1739760511119,3.2078,2671.6,2671.5,0.74853]
[1739760511425,5.6188,2671.6,2671.5,0.74853]
[1739760517230,6.36731,2671.6,2671.5,0.74853]
[1739760517529,5.6188,2671.6,2671.5,0.74853]
[1739760519828,3.2078,2671.6,2671.5,0.74853]
[1739760520023,5.6138,2671.6,2671.5,0.74853]
[1739760524634,3.2078,2671.9,2671.5,3.2078]
[1739760524835,3.2078,2671.9,2671.8,0.74845]
[1739760524836,5.6098,2671.9,2671.8,0.74845]
[1739760525634,5.6098,2671.9,2671.8,1.34845]
[1739760528136,3.2078,2671.9,2671.8,1.34845]
[1739760533746,2.9647,2672.0,2671.8,0.6]
[1739760534044,2.9647,2672.0,2671.9,0.74842]
[1739760540347,3.15339,2672.0,2671.3,1.87146]
[1739760540548,0.5751,2671.9,2671.8,0.74844]
[1739760541049,41.3751,2671.9,2671.8,0.74844]
[1739760541253,2.405,2672.0,2671.5,1.87129]
[1739760541452,2.405,2672.0,2671.9,0.74842]
[1739760544155,4.3226,2672.1,2672.0,0.74839]
[1739760544354,6.7306,2672.1,2672.0,0.74839]
[1739760546557,3.5228,2672.1,2672.0,0.74839]
[1739760547359,3.5218,2672.1,2672.0,0.74839]
[1739760548148,1.1148,2672.1,2672.0,0.74839]
[1739760548353,3.5218,2672.1,2672.0,0.74839]
[1739760548758,4.27017,2672.1,2672.0,0.74839]
[1739760549053,3.5218,2672.1,2672.0,0.74839]
[1739760549459,4.27016,2672.1,2672.0,0.74839]
[1739760549658,7.47796,2672.1,2672.0,0.74839]
[1739760549861,6.7296,2672.1,2672.0,0.74839]
[1739760551854,7.47798,2672.1,2671.6,1.87122]
[1739760552355,7.47798,2672.1,2672.0,0.74839]
[1739760552555,8.09102028,2672.1,2672.0,0.74839]
[1739760553764,6.7296,2672.1,2672.0,0.74839]
[1739760555059,6.1633,2672.1,2672.0,0.74839]
[1739760555567,0.00560821,2672.5,2672.0,2.10981028]
[1739760555767,2.403,2672.4,2672.3,0.74831]
[1739760556066,0.00560821,2672.5,2672.4,0.74828]
[1739760556261,2.40960821,2672.5,2672.4,0.74828]
[1739760557061,2.40860821,2672.5,2672.4,0.74828]
[1739760557460,0.00560821,2672.5,2672.4,0.74828]
[1739760557660,2.40860821,2672.5,2672.4,0.74828]
[1739760559359,0.00560821,2672.5,2672.4,0.74828]
[1739760559668,2.40760821,2672.5,2672.4,0.74828]
[1739760560567,0.00560821,2672.5,2672.4,0.74828]
[1739760564576,2.401,2672.9,2672.8,0.74817]
[1739760564768,2.9938,2672.9,2672.8,0.74817]
[1739760565269,0.5928,2672.9,2672.8,0.74817]
[1739760568075,5.6068,2673.0,2672.6,3.21340821]
[1739760568377,5.6068,2673.0,2672.9,0.74814]
[1739760569076,2.399,2673.0,2672.9,0.74814]
[1739760569279,0.56170821,2673.1,2673.0,0.74811]
[1739760569578,2.96070821,2673.1,2673.0,0.74811]
[1739760570276,0.56170821,2673.1,2673.0,0.74811]
[1739760576278,0.00560821,2673.1,2673.0,0.74811]
[1739760580877,1.36556728,2673.1,2673.0,0.74811]
[1739760582689,0.00560821,2673.1,2673.0,0.74811]
[1739760593790,0.74814,2673.0,2672.6,3.21340821]
[1739760593986,0.00560821,2673.1,2672.7,0.7482]
[1739760593987,1.89165,2672.9,2672.7,0.7482]
[1739760594293,2.9949,2672.8,2672.7,0.7482]
[1739760595796,3.74307,2672.8,2672.6,3.96160821]
[1739760596097,3.956,2672.7,2672.6,0.00560821]
[1739760598297,3.2078,2672.7,2672.6,0.75383821]
[1739760598499,44.0078,2672.7,2672.6,0.75383821]
[1739760598705,44.0078,2672.7,2672.6,0.00560821]
[1739760598906,3.956,2672.7,2672.6,0.00560821]
[1739760599303,3.2078,2672.7,2672.1,3.2078]
[1739760599605,0.7483,2672.4,2672.2,0.74833]
[1739760599803,3.5284,2672.3,2672.2,0.74833]
[1739760600003,4.1025,2672.3,2672.2,0.74833]
[1739760600408,4.1025,2672.3,2672.1,3.2078]
[1739760600703,4.85082,2672.3,2672.1,3.95615]
[1739760601007,4.1025,2672.3,2671.8,1.1407]
[1739760601208,0.74836,2672.2,2671.8,1.1407]
[1739760601509,4.1025,2672.3,2671.8,1.1407]
[1739760601707,4.85083,2672.3,2672.1,0.74835]
[1739760602008,4.1025,2672.3,2672.1,0.74835]
[1739760602309,0.74834,2672.2,2672.1,0.74835]
[1739760602698,4.1025,2672.3,2672.1,0.74835]
[1739760602900,4.85082,2672.3,2672.1,0.74834]
[1739760603106,4.1025,2672.3,2671.8,1.1407]
[1739760603401,0.74835,2672.2,2671.8,1.1407]
[1739760603593,0.74835,2672.2,2672.0,0.74838]
[1739760603799,4.1025,2672.3,2671.8,1.1407]
[1739760604005,0.74834,2672.2,2672.1,0.74835]
[1739760604510,0.74838,2672.1,2672.0,0.74838]
[1739760604708,4.1025,2672.3,2671.8,1.1407]
[1739760605208,0.74838,2672.1,2671.8,1.1407]
[1739760605415,3.95618,2672.1,2672.0,0.74839]
[1739760605602,0.74839,2672.0,2671.9,0.7484]
[1739760605907,3.95618,2672.1,2672.0,0.74839]
[1739760606709,3.2078,2672.1,2671.8,0.568]
[1739760606910,0.7484,2672.0,2671.9,0.74841]
[1739760607203,0.74844,2671.9,2671.8,0.74843]
[1739760607509,0.74847,2671.8,2671.5,0.5471]
[1739760607802,0.5419,2671.8,2671.6,0.74848]
[1739760608004,0.5419,2671.8,2671.5,0.5471]
[1739760608204,1.29035,2671.8,2671.7,0.74848]
[1739760608411,0.5419,2671.8,2671.7,0.74848]
[1739760611105,3.2078,2672.1,2672.0,0.74839]
[1739760611309,5.6058,2672.1,2672.0,0.74839]
[1739760612011,6.92917,2672.1,2672.0,0.74839]
[1739760612311,0.74842,2672.0,2671.7,1.1788]
[1739760612511,6.1808,2672.1,2671.8,0.74845]
[1739760612713,0.74842,2671.9,2671.8,0.74845]
[1739760613514,0.74841,2672.0,2671.7,1.1788]
[1739760613718,6.1808,2672.1,2671.7,1.1788]
[1739760614019,6.92918,2672.1,2672.0,0.74839]
[1739760614904,0.74839,2672.0,2671.9,0.7484]
[1739760615513,6.1808,2672.1,2672.0,0.74839]
[1739760616618,6.92917,2672.1,2672.0,0.74839]
[1739760617419,6.1808,2672.1,2672.0,0.74839]
[1739760618012,5.6058,2672.1,2672.0,0.74839]
[1739760618826,3.2078,2672.1,2672.0,0.74839]
[1739760619124,2.398,2672.1,2672.0,0.74839]
[1739760619621,3.7547,2672.5,2671.7,9.20493973]
[1739760619817,3.14628,2672.4,2672.3,0.74829]
[1739760620825,2.398,2672.4,2672.3,0.74829]
[1739760631133,3.95606,2672.5,2672.4,0.74828]
[1739760631326,6.35406,2672.5,2672.4,0.74828]
[1739760633031,3.14626,2672.5,2672.4,0.74828]
[1739760633233,6.35406,2672.5,2672.4,0.74828]
[1739760634338,5.6058,2672.5,2672.4,0.74828]
[1739760636635,3.2078,2672.5,2672.4,2.10916039]
[1739760637036,2.398,2672.9,2672.5,1.87064]
[1739760637235,2.398,2672.9,2672.8,0.74817]
[1739760638228,2.398,2672.9,2672.8,2.10905039]
[1739760638437,5.14958039,2673.2,2672.8,1.36088039]
[1739760638637,2.40360821,2673.1,2673.0,0.74811]
[1739760638839,2.40360821,2673.1,2673.0,1.33101]
[1739760639132,0.00560821,2673.1,2673.0,1.33101]
[1739760639330,2.40360821,2673.1,2673.0,1.33101]
[1739760644140,2.40360821,2673.1,2672.6,5.07831]
[1739760644352,0.74811,2673.0,2672.8,0.74817]
[1739760644541,1.88494,2672.9,2672.7,0.74818]
[1739760644840,0.74821,2672.7,2672.6,0.74822]
[1739760645044,2.398,2672.7,2672.6,0.74823]
[1739760645543,0.57,2672.8,2672.7,0.7482]
[1739760645744,2.969,2672.8,2672.7,0.7482]
[1739760648945,3.71719,2672.8,2672.6,0.74821]
[1739760649146,3.71719,2672.8,2672.4,0.5823]
[1739760649340,0.74821,2672.7,2672.5,0.74824]
[1739760649538,3.71718,2672.8,2672.6,0.7482]
[1739760649743,3.71718,2672.8,2672.7,0.7482]
[1739760649937,2.969,2672.8,2672.7,0.7482]
[1739760651949,2.972,2672.8,2672.7,0.7482]
[1739760654954,3.72017,2672.8,2672.7,0.7482]
[1739760655756,2.972,2672.8,2672.7,0.7482]
[1739760659351,3.72017,2672.8,2672.7,0.7482]
[1739760664663,5.08078278,2672.8,2672.7,0.7482]
[1739760664862,4.33261278,2672.8,2672.4,0.5477]
[1739760665062,0.74823,2672.7,2672.6,0.74822]
[1739760665561,2.972,2672.8,2672.3,0.581]
[1739760665768,2.10884278,2672.6,2672.5,0.74823]
[1739760666264,1.36061278,2672.6,2672.5,0.74823]
[1739760666465,2.10884278,2672.6,2672.5,0.74823]
[1739760666663,0.74822,2672.7,2672.6,0.74822]
[1739760667269,5.92051887,2672.8,2672.3,0.581]
[1739760667467,0.74824,2672.6,2672.5,0.74823]
[1739760667668,5.92051887,2672.8,2672.6,0.74822]
[1739760667669,0.74822,2672.7,2672.6,0.74822]
[1739760667868,3.95602,2672.7,2672.6,0.74822]
[1739760668370,3.2078,2672.7,2672.3,0.581]
[1739760668569,3.95601,2672.7,2672.6,0.74823]
[1739760673874,3.2078,2672.7,2672.6,0.74823]
[1739760675475,3.2078,2672.7,2672.6,1.33793]
[1739760677079,3.956,2672.7,2672.6,0.74823]
[1739760677675,3.2078,2672.7,2672.6,0.74823]
[1739760678669,0.7482,2672.7,2672.6,0.74823]
[1739760678876,3.956,2672.7,2672.6,0.74823]
[1739760684579,3.2078,2672.7,2672.6,0.74823]
[1739760686280,3.956,2672.7,2672.6,0.74823]
[1739760686582,3.2078,2672.7,2672.6,0.74823]
[1739760686768,3.956,2672.7,2672.6,0.74823]
[1739760687472,3.2078,2672.7,2672.6,0.74823]
[1739760688582,3.956,2672.7,2672.6,0.74823]
[1739760689373,3.2078,2672.7,2672.6,0.74823]
[1739760689573,4.33268642,2672.8,2672.4,2.4604]
[1739760689574,5.08087642,2672.8,2672.4,2.4604]
[1739760689774,5.08087642,2672.8,2672.7,0.7482]
[1739760689974,8.28867642,2672.8,2672.7,0.7482]
[1739760690683,7.54048642,2672.8,2672.4,0.5897]
[1739760690877,0.74821,2672.7,2672.6,0.7482]
[1739760694078,7.54048642,2672.8,2672.4,0.5897]
[1739760694382,0.74823,2672.7,2672.6,0.74821]
[1739760697779,0.74822,2672.7,2672.5,0.74824]
[1739760698080,7.54048642,2672.8,2672.4,0.5897]
[1739760698276,8.28865642,2672.8,2672.7,0.7482]
[1739760698686,7.54048642,2672.8,2672.4,0.5897]
[1739760698890,0.74821,2672.7,2672.6,0.7482]
[1739760699593,7.54048642,2672.8,2672.4,0.5897]
[1739760699788,0.74824,2672.6,2672.5,0.74824]
[1739760700293,2.10892642,2672.6,2672.5,0.74824]
[1739760700589,1.87071,2672.4,2671.4,19.36532039]
[1739760700892,4.56848642,2671.8,2671.5,1.1742]
[1739760701095,2.9915,2671.7,2671.5,1.92272]
[1739760701394,3.73998,2671.7,2671.5,1.92272]
[1739760701691,3.5872,2671.7,2671.6,0.74851]
[1739760701991,3.5872,2671.7,2671.5,1.1742]
[1739760702294,3.5872,2671.7,2671.6,0.74851]
[1739760704087,3.5872,2671.7,2671.5,1.1742]
[1739760704295,1.36068642,2671.6,2671.0,4.56848642]
[1739760704592,4.33569,2671.7,2671.3,0.74857]
[1739760704787,0.75412821,2671.6,2671.3,0.74857]
[1739760705184,0.00560821,2671.6,2671.3,0.74857]
[1739760705391,0.00560821,2671.6,2671.1,1.7604]
[1739760705793,0.00560821,2671.6,2671.4,0.74855]
[1739760706093,0.00560821,2671.6,2671.3,0.74858]
[1739760706484,0.00560821,2671.6,2671.4,0.74856]
[1739760707592,0.75411821,2671.6,2671.4,0.74856]
[1739760707895,0.00560821,2671.6,2671.5,0.74853]
[1739760708088,2.40360821,2671.6,2671.5,0.74853]
[1739760711693,3.15211821,2671.6,2671.5,0.74853]
[1739760711898,2.40360821,2671.6,2671.5,0.74853]
[1739760713997,0.00560821,2671.6,2671.5,0.74853]
[1739760715401,2.398,2671.9,2671.8,0.74845]
[1739760717903,3.14642,2671.9,2671.8,0.74845]
[1739760718203,2.398,2671.9,2671.8,0.74845]
[1739760719804,3.14642,2671.9,2671.8,0.74845]
[1739760720298,3.14642,2671.9,2671.7,0.74847]
[1739760720299,0.74845,2671.8,2671.7,0.74847]
[1739760720499,1.30845,2671.8,2671.7,0.74847]
[1739760720805,0.56,2671.8,2671.7,0.74847]
[1739760721108,0.74848,2671.7,2671.6,1.33079821]
[1739760721300,4.51627,2671.8,2671.7,0.74848]
[1739760721502,0.74848,2671.7,2671.6,0.00560821]
[1739760723609,3.7678,2671.8,2671.6,0.00560821]
[1739760723799,3.7678,2671.8,2671.7,0.74848]
[1739760724305,3.7678,2671.8,2671.6,0.75409821]
[1739760724518,4.51626,2671.8,2671.6,0.75409821]
[1739760724812,3.7678,2671.8,2671.6,0.00560821]
[1739760725011,3.7678,2671.8,2671.7,0.74848]
[1739760726014,3.7678,2671.8,2671.6,0.00560821]
[1739760726205,3.7678,2671.8,2671.6,0.75409821]
[1739760726407,4.51626,2671.8,2671.6,0.00560821]
[1739760726610,4.51626,2671.8,2671.7,0.74848]
[1739760726812,4.51626,2671.8,2671.6,0.00560821]
[1739760727213,0.74848,2671.7,2671.6,0.00560821]
[1739760727513,3.95628,2671.7,2671.6,0.75410821]
[1739760727921,3.95628,2671.7,2671.6,0.00560821]
[1739760728720,5.6058,2671.7,2671.6,0.75410821]
[1739760729021,2.398,2671.7,2671.6,0.75410821]
[1739760731421,3.2078,2672.0,2671.9,0.74842]
[1739760731621,5.6058,2672.0,2671.9,0.74842]
[1739760733224,6.35419,2672.0,2671.9,0.74842]
[1739760733524,5.6058,2672.0,2671.9,0.74842]
[1739760735425,5.6058,2672.0,2671.9,1.29952]
[1739760736226,6.1916,2672.0,2671.9,1.29952]
[1739760736627,2.9838,2672.0,2671.9,1.29952]
[1739760738628,2.398,2672.0,2671.9,0.5511]
[1739760738832,3.21340821,2672.1,2672.0,0.74839]
[1739760739024,5.61140821,2672.1,2672.0,0.74839]
[1739760741234,6.35976821,2672.1,2672.0,0.74839]
[1739760742136,5.61140821,2672.1,2672.0,0.74839]
[1739760742335,6.35976821,2672.1,2672.0,0.74839]
[1739760744130,5.61140821,2672.1,2672.0,0.74839]
[1739760744737,6.35976821,2672.1,2672.0,0.74839]
[1739760745539,5.61140821,2672.1,2671.8,0.5826]
[1739760745737,0.74845,2671.8,2671.7,1.86765]
[1739760747340,1.32544,2671.9,2671.8,0.74845]
[1739760748736,0.577,2671.9,2671.8,0.74845]
[1739760749549,0.577,2671.9,2671.7,1.1192]
[1739760749733,0.74845,2671.8,2671.7,0.74846]
[1739760750240,0.577,2671.9,2671.6,0.00560821]
[1739760750441,0.5809,2671.7,2671.6,0.75410821]
[1739760760737,1.32938,2671.7,2671.6,0.75410821]
[1739760762547,3.72638,2671.7,2671.6,0.75410821]
[1739760763243,2.9779,2671.7,2671.6,0.75410821]
[1739760763447,3.72638,2671.7,2671.6,0.75410821]
[1739760765543,2.9779,2671.7,2671.6,0.00560821]
[1739760765745,0.74857,2671.4,2671.3,0.74859]
[1739760765945,0.74857,2671.4,2671.2,0.7486]
[1739760766245,4.28699,2671.3,2671.2,0.7486]
[1739760766445,4.28701,2671.3,2671.1,0.74863]
[1739760766738,4.28701,2671.3,2670.9,0.5716]